bitfinex-derivatives/quotes_BNBF0:USTF0_20250316
["timestamp","ask_amount","ask_price","bid_price","bid_amount"]
[1742156928101,0.27836479,600.46,599.24,0.29022008]
[1742156928300,0.27836479,600.46,599.25,0.30640654]
[1742156929803,0.27836479,600.46,599.26,0.754]
[1742156929999,0.27836479,600.46,599.27,0.30640654]
[1742156930904,2.51575315,600.48,599.27,0.30640654]
[1742156930905,0.27836479,600.45,599.27,0.30640654]
[1742156931103,0.27836479,600.47,599.27,0.30640654]
[1742156931306,0.27836479,600.46,599.27,0.30640654]
[1742156931606,0.27836479,600.49,599.27,0.30640654]
[1742156931807,0.27836479,600.48,599.27,0.30640654]
[1742156932001,0.27836479,600.49,599.27,0.30640654]
[1742156932807,0.27848751,600.48,599.28,0.30639341]
[1742156933009,0.27848751,600.49,599.27,0.30639341]
[1742156933210,0.27848751,600.48,599.28,0.30639341]
[1742156933427,0.27848751,600.67,599.27,0.30639341]
[1742156933608,0.27848751,600.66,599.28,0.30639341]
[1742156933812,3.09674675,600.67,599.27,0.30639341]
[1742156934009,3.94223675,600.66,599.28,0.30639341]
[1742156934208,0.27848751,600.65,599.27,0.30639341]
[1742156935514,3.09674675,600.65,599.27,0.30639341]
[1742156935712,3.94223675,600.64,599.27,0.30639341]
[1742156935913,0.27848751,600.63,599.27,0.30639341]
[1742156936514,3.66374924,600.64,599.26,0.754]
[1742156936712,0.27846587,600.62,599.27,0.30639197]
[1742156936913,0.27846587,600.61,599.27,0.30639197]
[1742156937114,0.27846587,600.6,599.27,0.30639197]
[1742156937310,0.27846587,600.59,599.27,0.30639197]
[1742156937510,3.94221511,600.62,599.27,0.30639197]
[1742156937810,0.27846587,600.61,599.27,0.30639197]
[1742156939213,3.09672511,600.61,599.27,0.30639197]
[1742156939411,3.94221511,600.6,599.27,0.30639197]
[1742156939611,0.27846587,600.59,599.27,0.30639197]
[1742156940215,1.81345474,600.59,599.27,0.30639197]
[1742156940414,0.27846587,600.58,599.27,0.30639197]
[1742156940609,0.27846587,600.57,599.27,0.30639197]
[1742156940812,0.27846587,600.56,599.27,0.30639197]
[1742156941012,0.27846587,600.55,599.27,0.30639197]
[1742156941206,0.27846587,600.54,599.27,0.30639197]
[1742156941411,5.47720398,600.58,599.27,0.30639197]
[1742156941613,2.51575315,600.49,599.27,0.30639197]
[1742156941813,3.94221511,600.48,599.27,0.30639197]
[1742156942009,0.27846587,600.47,599.27,0.30639197]
[1742156943009,3.09672511,600.47,599.27,0.30639197]
[1742156943211,3.94221511,600.46,599.27,0.30639197]
[1742156943612,0.27846587,600.45,599.27,0.30639197]
[1742156945012,3.09672511,600.45,599.27,0.30639197]
[1742156945216,2.81825924,600.45,599.26,0.754]
[1742156945416,3.95098596,600.44,599.27,0.3063892]
[1742156945617,0.27853581,600.43,599.27,0.3063892]
[1742156946217,3.09679505,600.43,599.27,0.3063892]
[1742156946417,0.27853581,600.42,599.27,0.3063892]
[1742156947821,2.81825924,600.51,599.26,0.754]
[1742156948024,0.27853084,600.41,599.28,0.30637294]
[1742156948217,0.27853084,600.4,599.29,0.30637294]
[1742156948418,0.27853084,600.39,599.27,0.30637294]
[1742156948617,0.27853084,600.49,599.28,0.30637294]
[1742156948815,0.27853084,600.48,599.27,0.30637294]
[1742156949019,0.27853084,600.48,599.26,1.0441487]
[1742156949222,0.27853449,600.47,599.27,0.30637659]
[1742156949522,0.27853449,600.46,599.27,0.30637659]
[1742156949722,0.27853449,600.45,599.27,0.30637659]
[1742156949922,0.27853449,600.44,599.27,0.30637659]
[1742156950222,0.27853449,600.43,599.27,0.30637659]
[1742156950420,0.27853449,600.48,599.27,0.30637659]
[1742156950616,0.27853449,600.47,599.27,0.30637659]
[1742156950816,2.81825924,600.49,599.26,1.0441487]
[1742156951022,0.27853434,600.48,599.27,0.30637652]
[1742156951624,3.95362758,600.54,599.27,0.30637652]
[1742156951819,0.27853434,600.53,599.27,0.30637652]
[1742156952123,0.27853434,600.52,599.27,0.30637652]
[1742156952319,3.95362709,600.54,599.27,0.30637652]
[1742156952521,0.27853434,600.53,599.27,0.30637652]
[1742156953923,3.09679358,600.53,599.27,0.30637652]
[1742156954121,0.27853434,600.52,599.27,0.30637652]
[1742156955922,0.27853434,600.51,599.27,0.30637652]
[1742156956320,0.27853434,600.5,599.27,0.30637652]
[1742156956518,0.27853434,600.66,599.27,0.30637652]
[1742156956719,2.51575315,600.67,599.26,1.04414386]
[1742156956918,0.27847201,600.66,599.27,0.30631333]
[1742156957121,0.27847201,600.66,599.28,0.33373381]
[1742156957317,0.27847201,600.66,599.29,0.30631333]
[1742156957520,0.27847201,600.66,599.3,0.33372267]
[1742156957720,0.27847201,600.66,599.31,0.30631333]
[1742156957922,0.27847201,600.66,599.32,0.33371153]
[1742156958117,0.27847201,600.66,599.33,0.30631333]
[1742156958320,0.27847201,600.66,599.34,0.3337004]
[1742156958523,0.27847201,600.66,599.35,0.30631333]
[1742156958823,0.27847201,600.65,599.35,0.30631333]
[1742156959023,1.81408662,601.03,599.35,0.30631333]
[1742156959225,0.33277316,601.01,599.35,0.30631333]
[1742156959523,0.27847201,601.0,599.36,0.33368926]
[1742156959720,0.27847201,600.99,599.36,0.33368926]
[1742156960023,0.27847201,600.98,599.36,0.33368926]
[1742156960219,0.27847201,600.97,599.36,0.33368926]
[1742156960523,0.33280638,600.95,599.36,0.33368926]
[1742156960724,0.27847201,600.94,599.36,0.33368926]
[1742156960919,0.61128947,600.93,599.36,0.33368926]
[1742156961118,0.61129501,600.92,599.36,0.33368926]
[1742156961321,0.27847201,600.91,599.36,0.33368926]
[1742156961721,0.27847201,600.9,599.36,0.33368926]
[1742156961922,0.27847201,600.91,599.36,0.33368926]
[1742156962122,0.27847201,600.89,599.36,0.33368926]
[1742156962323,0.27847201,600.9,599.36,0.33368926]
[1742156962522,0.27847201,600.89,599.36,0.33368926]
[1742156962724,0.27847201,600.91,599.36,0.33368926]
[1742156962926,0.33284516,600.88,599.36,0.33368926]
[1742156963125,0.27852308,600.87,599.36,0.33368926]
[1742156963323,0.33285623,600.86,599.36,0.33368926]
[1742156963523,0.27852308,600.85,599.36,0.33368926]
[1742156963720,0.33286731,600.84,599.36,0.33368926]
[1742156964226,0.27852302,600.83,599.36,0.33368926]
[1742156964520,0.33287839,600.82,599.36,0.33368926]
[1742156964825,0.27852302,600.81,599.36,0.33368926]
[1742156965025,0.33288948,600.8,599.36,0.33368926]
[1742156965220,0.33288948,600.8,599.37,0.30635322]
[1742156965221,0.27852302,600.79,599.37,0.30635322]
[1742156965426,0.61142358,600.78,599.38,0.33367813]
[1742156965729,0.61142912,600.77,599.39,0.30635322]
[1742156966022,0.61143466,600.76,599.4,0.333667]
[1742156966226,0.6114402,600.75,599.4,0.333667]
[1742156966421,0.27852302,600.74,599.4,0.333667]
[1742156966623,0.33292827,600.73,599.41,0.30634514]
[1742156966818,0.27852302,600.72,599.41,0.64000657]
[1742156967024,0.27852302,600.72,599.41,0.33366143]
[1742156968028,0.27852302,600.72,599.42,0.30633753]
[1742156968821,0.27852302,600.72,599.43,0.3336503]
[1742156969021,0.27852302,600.72,599.44,0.30633753]
[1742156969226,0.27852302,600.72,599.45,0.33363916]
[1742156969625,0.33292827,600.73,599.45,0.33363916]
[1742156969823,0.2784943,600.72,599.45,0.33363916]
[1742156971428,0.2784943,600.72,599.45,0.32809727]
[1742156971829,0.2784943,600.71,599.46,0.30632361]
[1742156972023,0.61143919,600.7,599.47,0.33362803]
[1742156972222,0.2784943,600.69,599.47,0.33362803]
[1742156972428,0.2784943,600.68,599.47,0.33362803]
[1742156972630,0.2784943,600.67,599.47,0.33362803]
[1742156972827,0.2784943,600.66,599.47,0.33362803]
[1742156973031,0.2784943,600.69,599.47,0.33362803]
[1742156973231,0.2784943,600.68,599.47,0.33362803]
[1742156973433,0.33294489,600.7,599.47,0.33362803]
[1742156973630,0.27823985,600.69,599.47,0.33362803]
[1742156973831,0.27823985,600.68,599.47,0.33362803]
[1742156974027,0.27823985,600.69,599.47,0.33362803]
[1742156974233,0.27823985,600.68,599.47,0.33362803]
[1742156974432,3.95067588,600.68,599.47,0.33362803]
[1742156977938,0.27823985,600.65,599.47,0.33362803]
[1742156978340,3.1025564,600.65,599.47,0.33362803]
[1742156978540,3.95067588,600.64,599.47,0.33362803]
[1742156978734,0.27823985,600.63,599.47,0.33362803]
[1742156979543,3.1025564,600.63,599.47,0.33362803]
[1742156979741,3.95067588,600.62,599.47,0.33362803]
[1742156980041,0.27823985,600.61,599.47,0.33362803]
[1742156980437,0.27823781,600.6,599.47,0.33362803]
[1742156980639,0.27823781,600.61,599.47,0.33362803]
[1742156980839,0.27823781,600.6,599.47,0.33362803]
[1742156981036,0.27823781,600.61,599.47,0.33362803]
[1742156981243,0.27823781,600.6,599.47,0.33362803]
[1742156981439,3.10255436,600.61,599.47,0.33362803]
[1742156981639,3.95067384,600.6,599.47,0.33362803]
[1742156981840,0.27823781,600.59,599.47,0.33362803]
[1742156982040,0.27823781,600.59,599.48,0.30634198]
[1742156982842,3.67243603,600.6,599.47,0.33362803]
[1742156983046,0.27822289,600.59,599.48,0.30632915]
[1742156984042,3.10253944,600.59,599.48,0.30632915]
[1742156984242,3.67243603,600.58,599.48,0.30632915]
[1742156984442,0.27822289,600.57,599.48,0.30632915]
[1742156984842,0.27822584,600.56,599.49,0.30633214]
[1742156985144,0.27822584,600.55,599.47,0.33362803]
[1742156985344,0.27822584,600.57,599.48,0.30633444]
[1742156985540,0.27822584,600.56,599.48,0.30633444]
[1742156985745,3.10254239,600.57,599.48,0.30633444]
[1742156985944,0.27822584,600.56,599.48,0.30633444]
[1742156988042,0.27822584,600.65,599.47,0.33362803]
[1742156989444,3.10254239,600.65,599.47,0.33362803]
[1742156989746,0.27822584,600.64,599.47,0.33362803]
[1742156991247,0.27822584,600.69,599.47,0.33362803]
[1742156991441,0.27822584,600.68,599.47,0.33362803]
[1742156991747,0.27822584,600.67,599.48,0.826]
[1742156991942,0.27822584,600.69,599.48,0.826]
[1742156992147,0.27827385,600.68,599.48,0.826]
[1742156992342,0.27827385,600.69,599.48,0.826]
[1742156992541,0.27827385,600.68,599.48,0.826]
[1742156992739,0.27827385,600.69,599.48,0.826]
[1742156992944,0.27827385,600.68,599.48,0.826]
[1742156993145,0.27827385,600.69,599.48,0.826]
[1742156993341,0.27827385,600.68,599.48,0.826]
[1742156993541,0.27827385,600.69,599.48,0.826]
[1742156993742,0.27827385,600.68,599.48,0.826]
[1742156993940,0.33294489,600.7,599.48,0.826]
[1742156994246,0.27826196,600.69,599.48,0.826]
[1742156995948,0.27823252,600.68,599.48,0.826]
[1742156996140,0.27823252,600.69,599.48,0.826]
[1742156996342,0.33294489,600.7,599.48,0.826]
[1742156996343,0.27823252,600.67,599.48,0.826]
[1742156996540,0.27823252,600.66,599.48,0.826]
[1742156996744,0.27823252,600.69,599.48,0.826]
[1742156996944,0.27823252,600.68,599.48,0.826]
[1742156997146,0.27823252,600.69,599.48,0.826]
[1742156997745,0.27823252,600.69,599.49,0.3336169]
[1742156998249,0.27823252,600.69,599.5,0.30629884]
[1742156998441,0.27823252,600.69,599.51,0.33360577]
[1742156998844,0.27823252,600.69,599.52,0.30628258]
[1742156999042,0.27823252,600.69,599.52,0.63988279]
[1742156999441,0.33294489,600.7,599.52,0.33360021]
[1742156999442,0.27817939,600.68,599.52,0.33360021]
[1742156999642,0.27817939,600.69,599.52,0.33360021]
[1742157000045,0.27817939,600.69,599.53,0.30628471]
[1742157000242,0.27817939,600.69,599.52,0.33360021]
[1742157002942,0.27817939,600.69,599.53,0.30628043]
[1742157003245,0.27817939,600.69,599.54,0.33358908]
[1742157003444,0.27817939,600.69,599.55,0.30628043]
[1742157003645,0.27817939,600.69,599.56,0.33357795]
[1742157005044,0.27817939,600.69,599.57,0.306265]
[1742157005745,0.27817939,600.69,599.56,0.33357795]
[1742157006049,0.27817939,600.69,599.56,1.12157795]
[1742157008153,0.27817939,600.69,599.57,0.30625984]
[1742157008349,0.27817939,600.69,599.58,0.33356683]
[1742157008745,0.27817939,600.69,599.59,0.30626115]
[1742157009246,0.27817939,600.69,599.6,0.3335557]
[1742157009746,0.27817939,600.69,599.61,0.30626115]
[1742157009946,0.27817939,600.69,599.62,0.33354457]
[1742157010251,0.27817939,600.69,599.63,0.30626115]
[1742157010451,0.27817939,601.06,599.64,0.33353345]
[1742157010651,0.6109304,601.05,599.65,0.30626115]
[1742157010855,0.61093594,601.04,599.66,0.33352232]
[1742157011153,0.61094148,601.03,599.66,0.33352232]
[1742157011344,0.27817939,601.02,599.66,0.33352232]
[1742157014652,0.27817939,601.02,599.67,0.30617205]
[1742157014956,0.27817939,601.02,599.68,0.3335112]
[1742157015155,0.27817939,601.02,599.69,0.30617205]
[1742157015458,0.27817939,601.02,599.7,0.33350008]
[1742157015657,0.27817939,601.02,599.71,0.30617205]
[1742157015853,0.27817939,601.02,599.72,0.33348896]
[1742157017959,0.33276209,601.03,599.72,0.33348896]
[1742157018159,0.27808127,601.02,599.72,0.33348896]
[1742157023064,0.33276209,601.03,599.72,0.33348896]
[1742157023367,0.27807243,601.02,599.73,0.30617647]
[1742157023564,0.27807243,601.02,599.74,0.33347784]
[1742157024165,0.27807243,601.02,599.75,0.30617915]
[1742157024365,0.27807243,601.02,599.75,0.63965143]
[1742157024567,0.27807243,601.01,599.76,0.30617915]
[1742157024766,0.27807243,601.0,599.76,0.30617915]
[1742157024968,0.27807243,600.99,599.76,0.30617915]
[1742157025168,0.27807243,601.02,599.76,0.30617915]
[1742157025469,0.27807243,601.01,599.76,0.30617915]
[1742157025669,0.27807243,601.0,599.77,0.33346116]
[1742157025865,0.33276209,601.03,599.78,0.30617915]
[1742157025866,0.27807243,600.99,599.78,0.30617915]
[1742157026073,0.27807243,600.98,599.78,0.63963475]
[1742157026273,0.27807243,601.02,599.79,0.30617915]
[1742157026467,0.27807243,601.01,599.79,0.30617915]
[1742157026772,0.27807243,601.0,599.79,0.30617915]
[1742157026970,0.27807243,600.99,599.79,0.30617915]
[1742157027167,0.27807243,600.98,599.79,0.30617915]
[1742157027368,0.27807243,601.02,599.79,0.30617915]
[1742157027567,0.27807243,601.01,599.79,0.30617915]
[1742157027765,0.27807243,601.0,599.79,0.30617915]
[1742157027972,0.27807243,600.99,599.79,0.30617915]
[1742157028271,0.27807243,600.98,599.79,0.30617915]
[1742157028471,0.27807243,601.02,599.79,0.30617915]
[1742157028680,0.27806178,601.01,599.78,0.3334556]
[1742157028874,0.27806178,601.0,599.78,0.3334556]
[1742157029073,0.27806178,600.99,599.78,0.3334556]
[1742157029274,0.27806178,601.02,599.78,0.3334556]
[1742157029473,0.27806178,601.01,599.78,0.3334556]
[1742157029675,0.27806178,601.02,599.78,0.3334556]
[1742157029876,0.27806178,601.01,599.79,0.30616312]
[1742157030174,0.27806178,601.0,599.79,0.30616312]
[1742157030476,0.33276209,601.03,599.78,0.3334556]
[1742157030670,0.27805949,601.02,599.79,0.30616326]
[1742157030870,0.27805949,601.02,599.78,0.3334556]
[1742157031275,0.27805949,601.02,599.79,0.30615597]
[1742157031472,0.27805949,601.02,599.8,0.33344448]
[1742157031778,0.27805949,601.02,599.81,0.30615597]
[1742157032179,0.27805949,601.02,599.82,0.33343336]
[1742157032379,0.27805949,601.02,599.83,0.30615597]
[1742157032980,0.27805949,601.02,599.84,0.33342224]
[1742157033175,0.27805949,601.02,599.85,0.30615597]
[1742157033378,0.27805949,601.02,599.86,0.33341112]
[1742157033579,0.27805949,601.02,599.87,0.30615597]
[1742157033775,0.27805949,601.02,599.88,0.33340001]
[1742157033979,0.27805949,601.02,599.89,0.30615597]
[1742157034176,0.27797091,601.01,599.9,0.63946246]
[1742157034377,0.27797091,601.02,599.91,0.30607357]
[1742157034578,0.27797091,601.01,599.91,0.30607357]
[1742157034778,0.27797091,601.0,599.91,0.30607357]
[1742157034979,0.27797091,601.02,599.91,0.30607357]
[1742157035176,0.27797091,601.01,599.91,0.30607357]
[1742157035377,0.27797091,601.02,599.92,0.33337778]
[1742157035582,0.27797091,601.01,599.92,0.33337778]
[1742157035777,0.33276209,601.03,599.92,0.33337778]
[1742157035983,0.27798018,601.02,599.92,0.33337778]
[1742157036582,0.33276209,601.03,599.92,0.33337778]
[1742157036882,0.27798077,601.02,599.92,0.33337778]
[1742157037885,0.33276209,601.03,599.92,0.33337778]
[1742157038086,0.27798017,601.02,599.92,0.33337778]
[1742157038287,0.27798017,601.02,599.93,0.30608046]
[1742157038487,0.27798017,601.02,599.94,0.33336667]
[1742157039888,0.2779777,601.01,599.94,0.33336667]
[1742157040086,0.2779777,601.02,599.94,0.33336667]
[1742157040887,0.2779777,601.02,599.95,0.766]
[1742157042684,0.33276209,601.03,599.95,0.766]
[1742157043089,0.33276209,601.03,599.96,0.33335555]
[1742157043692,0.27797643,601.02,599.96,0.33335555]
[1742157045392,0.27797545,601.01,599.96,0.33335555]
[1742157045591,0.27797545,601.02,599.96,0.33335555]
[1742157045892,0.27797545,601.01,599.96,0.33335555]
[1742157046091,0.33276209,601.03,599.96,0.33335555]
[1742157046292,0.27797892,601.02,599.96,0.33335555]
[1742157047288,0.33276209,601.03,599.96,0.33335555]
[1742157047488,0.27797887,601.02,599.96,0.33335555]
[1742157054494,0.33276209,601.03,599.96,0.33335555]
[1742157054697,0.2779575,601.02,599.96,0.33335555]
[1742157054898,0.2779575,601.56,599.96,0.33335555]
[1742157055204,0.33247996,601.54,599.96,0.33335555]
[1742157055499,0.2779575,601.53,599.96,0.33335555]
[1742157055893,0.2779575,601.52,599.96,0.33335555]
[1742157056297,0.2779575,601.51,599.96,0.33335555]
[1742157056796,0.3325076,601.49,599.96,0.33335555]
[1742157057195,0.2779575,601.48,599.96,0.33335555]
[1742157057401,0.2779575,601.47,599.96,0.33335555]
[1742157057602,0.3325076,601.49,599.96,0.33335555]
[1742157057603,0.2779575,601.46,599.96,0.33335555]
[1742157057903,0.2779575,601.45,599.96,0.33335555]
[1742157058102,0.2779575,601.48,599.96,0.33335555]
[1742157058300,0.2779575,601.44,599.96,0.33335555]
[1742157058499,0.2779575,601.43,599.96,0.33335555]
[1742157058699,0.2779575,601.48,599.96,0.33335555]
[1742157058903,0.2779575,601.47,599.96,0.33335555]
[1742157059102,0.2779575,601.46,599.96,0.33335555]
[1742157059299,0.2779575,601.45,599.96,0.33335555]
[1742157059498,0.33254077,601.43,599.96,0.33335555]
[1742157059698,0.2779575,601.42,599.96,0.33335555]
[1742157060103,0.33255736,601.4,599.96,0.33335555]
[1742157060505,0.27801086,601.39,599.96,0.33335555]
[1742157061501,0.33257395,601.37,599.96,0.33335555]
[1742157061701,0.27801648,601.36,599.96,0.33335555]
[1742157061899,0.33259054,601.34,599.96,0.33335555]
[1742157062102,0.27801648,601.33,599.96,0.33335555]
[1742157062398,0.3326016,601.32,599.96,0.33335555]
[1742157062599,0.27801648,601.31,599.96,0.33335555]
[1742157062803,0.33261267,601.3,599.96,0.33335555]
[1742157062999,0.27801648,601.29,599.96,0.33335555]
[1742157064007,0.33262373,601.28,599.96,0.33335555]
[1742157064201,0.27801648,601.27,599.96,0.33335555]
[1742157064705,0.3326348,601.26,599.96,0.33335555]
[1742157065000,0.27801648,601.25,599.96,0.33335555]
[1742157065206,0.33264586,601.24,599.96,0.33335555]
[1742157065403,0.27803209,601.23,599.96,0.33335555]
[1742157065600,0.33265693,601.22,599.96,0.33335555]
[1742157065801,0.27803209,601.21,599.96,0.33335555]
[1742157066001,0.33266799,601.2,599.96,0.33335555]
[1742157066303,0.27803209,601.19,599.96,0.33335555]
[1742157066505,0.33267906,601.18,599.96,0.33335555]
[1742157066701,0.27803209,601.17,599.96,0.33335555]
[1742157067006,0.33269013,601.16,599.96,0.33335555]
[1742157067207,0.27803209,601.15,599.96,0.33335555]
[1742157067402,0.61072775,601.15,599.96,0.33335555]
[1742157067607,0.27803209,601.14,599.96,0.33335555]
[1742157074111,0.27797881,601.13,599.96,0.33335555]
[1742157074410,0.27797881,601.12,599.96,0.33335555]
[1742157074813,0.27797881,601.11,599.96,0.33335555]
[1742157075206,0.27797881,601.1,599.96,0.33335555]
[1742157075412,0.27797881,601.14,599.96,0.33335555]
[1742157075713,0.27797881,601.13,599.96,0.33335555]
[1742157075912,0.33269566,601.15,599.96,0.33335555]
[1742157075913,0.27797881,601.14,599.96,0.33335555]
[1742157076212,0.27797881,601.13,599.96,0.33335555]
[1742157076412,0.27797881,601.14,599.96,0.33335555]
[1742157076607,0.33269566,601.15,599.96,0.33335555]
[1742157076815,0.2779897,601.14,599.96,0.33335555]
[1742157081817,0.33269566,601.15,599.96,0.33335555]
[1742157082018,0.2780093,601.14,599.96,0.33335555]
[1742157083620,3.92911731,601.14,599.96,0.33335555]
[1742157083920,3.65110801,601.14,599.96,0.33335555]
[1742157084121,0.27800889,601.13,599.96,0.33335555]
[1742157084719,3.11514824,601.13,599.96,0.33335555]
[1742157084919,3.9291169,601.12,599.96,0.33335555]
[1742157085219,0.27800889,601.11,599.96,0.33335555]
[1742157085519,0.27800889,601.1,599.96,0.33335555]
[1742157085724,3.66879738,601.12,599.96,0.33335555]
[1742157085924,0.27800595,601.11,599.96,0.33335555]
[1742157086627,3.1151453,601.11,599.96,0.33335555]
[1742157086926,3.94680333,601.1,599.96,0.33335555]
[1742157087120,0.27800595,601.09,599.96,0.33335555]
[1742157087519,0.27800888,601.08,599.96,0.33335555]
[1742157087724,0.27800888,601.09,599.96,0.33335555]
[1742157087924,0.27800888,601.08,599.96,0.33335555]
[1742157088226,0.27800888,601.07,599.96,0.33335555]
[1742157088427,3.11514823,601.09,599.96,0.33335555]
[1742157088627,3.94680626,601.08,599.96,0.33335555]
[1742157088923,0.27800888,601.07,599.96,0.33335555]
[1742157090029,3.11514823,601.07,599.96,0.33335555]
[1742157090228,3.94680626,601.06,599.96,0.33335555]
[1742157090430,0.27800888,601.05,599.96,0.33335555]
[1742157091529,3.11514823,601.05,599.96,0.33335555]
[1742157091732,0.27800888,601.04,599.96,0.33335555]
[1742157093228,0.27800888,601.14,599.96,0.33335555]
[1742157093434,0.27800888,601.13,599.96,0.33335555]
[1742157093728,0.27800888,601.12,599.96,0.33335555]
[1742157093932,0.3327178,601.11,599.96,0.33335555]
[1742157094134,0.27800888,601.1,599.97,0.768]
[1742157095834,0.33272887,601.09,599.97,0.768]
[1742157096028,0.27800888,601.08,599.97,0.768]
[1742157096633,0.33273994,601.07,599.97,0.768]
[1742157096834,0.27800888,601.06,599.97,0.768]
[1742157097034,0.33275101,601.05,599.97,0.768]
[1742157097235,0.27800888,601.04,599.97,0.768]
[1742157102438,0.33275101,601.05,599.97,0.768]
[1742157102633,0.27801336,601.04,599.97,0.768]
[1742157117048,0.33275101,601.05,599.97,0.768]
[1742157117250,0.27796355,601.04,599.97,0.768]
[1742157117649,0.27796355,601.04,599.98,0.30606605]
[1742157118553,0.27796355,601.04,599.97,0.768]
[1742157125164,0.27796355,601.04,599.96,0.33335555]
[1742157127763,0.27796355,601.04,599.97,0.743]
[1742157129964,0.33275101,601.05,599.97,0.743]
[1742157130160,0.27805501,601.04,599.97,0.743]
[1742157131662,0.33275101,601.05,599.97,0.743]
[1742157131860,0.27809719,601.04,599.97,0.743]
[1742157134261,0.33275101,601.05,599.97,0.743]
[1742157134464,0.27808031,601.04,599.97,0.743]
[1742157134664,0.33275101,601.05,599.97,0.743]
[1742157134665,0.27808031,601.03,599.97,0.743]
[1742157134865,0.27808031,601.04,599.97,0.743]
[1742157135066,0.27808031,601.03,599.97,0.743]
[1742157135362,0.27808031,601.02,599.97,0.743]
[1742157135565,0.27808031,601.04,599.97,0.743]
[1742157135766,0.27808031,601.03,599.97,0.743]
[1742157135967,0.27808031,601.04,599.97,0.743]
[1742157136163,0.27808031,601.03,599.97,0.743]
[1742157136369,0.27808031,601.04,599.97,0.743]
[1742157136569,0.27808031,601.03,599.97,0.743]
[1742157136865,0.27808031,601.04,599.97,0.743]
[1742157137170,0.27808031,601.03,599.97,0.743]
[1742157137370,0.27808031,601.04,599.97,0.743]
[1742157144976,0.33275101,601.05,599.97,0.743]
[1742157145177,0.27803565,601.04,599.97,0.743]
[1742157146981,0.27803282,601.03,599.97,0.743]
[1742157147178,0.27803282,601.04,599.97,0.743]
[1742157147383,0.27803282,601.03,599.97,0.743]
[1742157147582,0.27803282,601.04,599.97,0.743]
[1742157147784,0.27803282,601.03,599.97,0.743]
[1742157148180,0.27803282,601.02,599.97,0.743]
[1742157148382,0.27803282,601.04,599.97,0.743]
[1742157148977,0.27803282,601.04,599.98,0.30605843]
[1742157149279,0.27803282,601.04,599.99,0.33333888]
[1742157149986,0.27803282,601.36,599.99,0.33333888]
[1742157150183,0.27803282,601.35,600.0,0.30603817]
[1742157150578,0.27803282,601.34,599.99,0.33333888]
[1742157150783,0.27803282,601.33,599.99,0.33333888]
[1742157150981,0.27803282,601.32,600.0,0.30600401]
[1742157151179,0.27803282,601.31,600.0,0.30600401]
[1742157151380,0.27803282,601.3,600.0,0.30600401]
[1742157151581,0.27803282,601.44,600.0,0.30600401]
[1742157151782,0.61057359,601.43,600.0,0.30600401]
[1742157151981,0.27803282,601.42,600.0,0.30600401]
[1742157152383,0.27788035,601.41,600.01,0.3059817]
[1742157152583,0.27788035,601.42,600.0,0.3059817]
[1742157152779,0.27788035,601.4,600.02,0.3059817]
[1742157152987,0.27788035,601.39,600.03,0.3059817]
[1742157153180,0.27788035,601.38,600.04,0.3059817]
[1742157153385,0.27788035,601.42,600.0,0.3059817]
[1742157153588,0.27788035,601.41,600.01,0.3059817]
[1742157153792,0.27788035,601.42,600.0,0.3059817]
[1742157154491,0.27788035,601.42,600.01,0.33332777]
[1742157154685,0.27788035,601.42,600.02,0.3059817]
[1742157157087,0.27788035,601.42,600.03,0.33331666]
[1742157157389,0.27788035,601.42,600.04,0.3059817]
[1742157157591,0.27788035,601.42,600.05,0.33330555]
[1742157158184,0.27788252,601.41,600.05,0.33330555]
[1742157158386,0.27788252,601.42,600.05,0.33330555]
[1742157158589,0.27788252,601.41,600.05,0.33330555]
[1742157158790,0.27788252,601.42,600.05,0.33330555]
[1742157158988,0.27788252,601.41,600.05,0.33330555]
[1742157159192,0.27788252,601.4,600.05,0.33330555]
[1742157159392,0.27788252,601.42,600.05,0.33330555]
[1742157159595,0.27788252,601.41,600.05,0.33330555]
[1742157159785,0.27788252,601.42,600.05,0.33330555]
[1742157159990,0.27788252,601.41,600.05,0.33330555]
[1742157160188,0.27788252,601.42,600.05,0.33330555]
[1742157160388,0.33254077,601.43,600.05,0.33330555]
[1742157160389,0.27788252,601.41,600.05,0.33330555]
[1742157160587,0.27788252,601.4,600.05,0.33330555]
[1742157160792,0.27788252,601.42,600.05,0.33330555]
[1742157160989,0.27788252,601.41,600.05,0.33330555]
[1742157161189,0.27788252,601.42,600.05,0.33330555]
[1742157161389,0.27788252,601.41,600.05,0.33330555]
[1742157161595,0.27788252,601.42,600.05,0.33330555]
[1742157161894,0.27788252,601.41,600.05,0.33330555]
[1742157162094,0.27788252,601.42,600.05,0.33330555]
[1742157162296,0.27788252,601.4,600.05,0.33330555]
[1742157162493,0.27788252,601.39,600.05,0.33330555]
[1742157162692,0.27788252,601.42,600.05,0.33330555]
[1742157162888,0.27788252,601.42,600.05,0.96930555]
[1742157163691,0.27785927,601.41,600.05,0.96930555]
[1742157163995,0.27785927,601.4,600.05,0.96930555]
[1742157164193,0.27785927,601.42,600.05,0.96930555]
[1742157164390,0.27785927,601.41,600.05,0.96930555]
[1742157164695,0.27785927,601.4,600.06,0.3059673]